bitfinex/quotes_ETHUSD_20210401
["timestamp","ask_amount","ask_price","bid_price","bid_amount"]
[1617250517349,7.79608,1924.3,1924.1,1.0]
[1617250518369,2.0789227,1924.4,1924.1,1.0]
[1617250518572,9.8744527,1924.4,1924.1,1.0]
[1617250518971,2.0789227,1924.4,1924.1,1.0]
[1617250519572,7.79583,1924.3,1924.1,1.0]
[1617250525435,7.79583,1924.3,1924.2,2.52471122]
[1617250525629,7.79583,1924.3,1924.2,8.94961122]
[1617250525829,7.79583,1924.3,1924.2,6.4249]
[1617250526467,10.39462,1924.5,1924.2,6.4249]
[1617250527471,7.7951,1924.4,1924.2,6.4249]
[1617250528869,10.31981122,1924.4,1924.2,6.4249]
[1617250529469,6.7951,1924.4,1924.2,6.4249]
[1617250530870,6.7951,1924.4,1924.1,1.8697]
[1617250531070,6.7951,1924.4,1924.1,1.0]
[1617250534122,6.7951,1924.4,1924.2,0.4]
[1617250534525,15.24,1924.7,1924.2,0.4]
[1617250535126,9.24,1924.7,1924.3,0.4]
[1617250535326,7.79466,1924.6,1924.3,0.4]
[1617250535526,7.79466,1924.6,1924.3,0.1217]
[1617250535929,7.79466,1924.6,1924.2,0.29]
[1617250536127,7.79466,1924.6,1924.2,0.38]
[1617250537350,7.74466,1924.6,1924.2,0.38]
[1617250537751,7.74466,1924.6,1924.5,14.93]
[1617250537952,4.23,1924.7,1924.5,20.925]
[1617250538152,4.23,1924.7,1924.6,16.53]
[1617250539378,4.23,1924.7,1924.6,8.17174]
[1617250539577,4.23,1924.7,1924.6,11.45174]
[1617250539777,3.23,1924.7,1924.6,11.45174]
[1617250540383,3.23,1924.7,1924.6,3.66]
[1617250540579,3.23,1924.7,1924.6,0.38]
[1617250541379,3.23,1924.7,1924.6,6.08]
[1617250542020,3.23,1924.7,1924.6,0.38]
[1617250544827,2.23,1924.7,1924.6,7.63]
[1617250545026,2.23,1924.7,1924.6,10.45]
[1617250545227,2.23,1924.7,1924.6,3.2]
[1617250548453,2.23,1924.7,1924.6,2.82]
[1617250548653,2.23,1924.7,1924.5,8.7023]
[1617250549654,1.23,1924.7,1924.5,8.7023]
[1617250550480,1.23,1924.7,1924.6,7.76]
[1617250551281,1.23,1924.7,1924.6,11.32]
[1617250551685,1.23,1924.7,1924.6,3.97]
[1617250551880,1.23,1924.7,1924.6,3.56]
[1617250552082,1.23,1924.7,1924.4,4.48]
[1617250552904,1.24823651,1924.7,1924.4,4.48]
[1617250553305,1.23,1924.7,1924.4,1.48]
[1617250553704,1.2482365,1924.7,1924.4,1.48]
[1617250554308,1.23,1924.7,1924.4,1.48]
[1617250554704,0.23,1924.7,1924.4,0.67]
[1617250554905,0.23,1924.7,1924.4,1.87]
[1617250555126,0.23,1924.7,1924.4,8.46331]
[1617250555727,0.23,1924.7,1924.5,2.34704686]
[1617250556130,0.24823611,1924.7,1924.5,2.34704686]
[1617250556329,0.23,1924.7,1924.5,5.10704686]
[1617250556530,0.24215723,1924.7,1924.5,5.10704686]
[1617250557128,0.24215723,1924.7,1924.5,2.76]
[1617250557328,0.01215747,1924.6,1924.5,2.76]
[1617250557528,0.24215742,1924.7,1924.5,2.76]
[1617250557775,0.24215742,1924.7,1924.4,8.07331]
[1617250557974,0.01215751,1924.6,1924.4,8.07331]
[1617250558777,0.01215751,1924.6,1924.5,2.52668406]
[1617250559177,0.24215725,1924.7,1924.5,2.52668406]
[1617250559377,0.24215725,1924.7,1924.6,9.24]
[1617250559777,0.26039312,1925.0,1924.6,9.52]
[1617250559980,0.26039312,1925.0,1924.6,0.67]
[1617250560782,0.66039312,1925.0,1924.6,0.28]
[1617250562379,8.45378312,1925.0,1924.6,0.28]
[1617250564806,7.45378312,1925.0,1924.6,0.66]
[1617250565404,0.38,1924.9,1924.4,0.09406894]
[1617250565628,0.38,1924.9,1924.4,0.37406894]
[1617250566228,2.2182902,1925.1,1924.5,0.41]
[1617250566829,2.6282902,1925.1,1924.6,0.301]
[1617250567229,7.79357,1924.9,1924.6,0.301]
[1617250569858,6.79357,1924.9,1924.6,0.301]
[1617250570878,7.18357,1924.9,1924.3,7.79398]
[1617250571084,0.4,1924.8,1924.2,2.58544448]
[1617250571280,0.4,1924.8,1924.2,5.60544448]
[1617250571878,0.4,1924.8,1924.2,5.51137554]
[1617250572078,5.01,1924.7,1924.2,5.51137554]
[1617250572279,5.15,1924.7,1924.2,2.49137554]
[1617250572478,0.14,1924.7,1924.1,1.67]
[1617250572878,5.15,1924.7,1924.1,1.67]
[1617250573079,0.4,1924.6,1924.1,1.0]
[1617250573279,8.19492,1924.6,1924.1,1.0]
[1617250573725,7.79492,1924.6,1924.1,1.0]
[1617250574125,5.01,1924.9,1924.2,0.301]
[1617250574325,12.94401,1924.9,1924.2,8.18907894]
[1617250574525,12.94401,1924.9,1924.3,2.49137554]
[1617250574723,11.94401,1924.9,1924.4,0.708]
[1617250574926,11.94401,1924.9,1924.5,0.4]
[1617250575126,7.79401,1924.9,1924.5,0.4]
[1617250575329,7.79401,1924.9,1924.5,9.3719]
[1617250576534,4.20695902,1925.0,1924.5,9.3719]
[1617250576735,0.14,1925.0,1924.7,0.41]
[1617250577336,7.79272,1925.2,1924.7,0.41]
[1617250577535,7.79272,1925.2,1924.8,0.301]
[1617250579362,5.01,1925.4,1925.0,0.39]
[1617250579563,14.67758775,1925.7,1925.1,11.1427248]
[1617250579762,0.68721775,1925.7,1925.2,0.704]
[1617250579962,0.68721775,1925.7,1925.2,0.79806894]
[1617250579963,0.29721775,1925.7,1925.2,0.79806894]
[1617250580163,0.29721775,1925.7,1925.4,0.67]
[1617250580363,0.62360647,1925.8,1925.4,0.67]
[1617250580568,0.62360647,1925.8,1925.4,0.28]
[1617250580965,0.3525565,1925.8,1925.4,0.28]
[1617250581165,0.09,1925.8,1925.4,0.69]
[1617250581581,0.39,1925.9,1925.4,0.69]
[1617250581782,0.14,1926.0,1925.4,0.69]
[1617250581983,0.4,1926.0,1925.4,0.69]
[1617250582182,8.18947,1926.0,1925.4,0.69]
[1617250583584,8.32947,1926.0,1925.4,0.69]
[1617250583783,8.18947,1926.0,1925.4,0.69]
[1617250584817,7.18947,1926.0,1925.5,0.41]
[1617250585013,7.32947,1926.0,1925.5,9.5405]
[1617250585814,7.27947,1926.0,1925.5,9.5405]
[1617250587255,5.01,1925.8,1925.5,9.5405]
[1617250587457,4.96,1925.8,1925.5,9.5405]
[1617250587655,5.01,1925.9,1925.5,9.5405]
[1617250588054,5.01,1925.9,1925.5,9.1305]
[1617250588657,5.01,1925.9,1925.5,9.5105]
[1617250589258,7.79101,1925.7,1925.5,9.5105]
[1617250590257,7.79101,1925.7,1925.5,9.1305]
[1617250590459,7.79101,1925.7,1925.4,0.28]
[1617250590861,7.79101,1925.7,1925.0,0.09406894]
[1617250591062,7.79101,1925.7,1925.2,0.28]
[1617250593085,7.79101,1925.7,1925.2,2.75169052]
[1617250593885,6.79101,1925.7,1925.2,0.28]
[1617250594083,6.79101,1925.7,1925.0,5.27169052]
[1617250594084,7.17101,1925.7,1925.0,0.28]
[1617250594284,5.01,1925.5,1924.9,0.48406894]
[1617250594537,0.14,1925.2,1924.8,0.28]
[1617250594738,0.14,1925.5,1924.9,2.87933796]
[1617250594936,0.14,1925.5,1925.0,0.315]
[1617250595140,0.14,1925.5,1925.1,2.46933796]
[1617250595335,0.14,1925.5,1925.2,0.4]
[1617250595736,0.14,1925.5,1925.0,0.315]
[1617250596536,0.14,1925.5,1924.8,0.47406894]
[1617250596736,0.14,1925.3,1924.8,0.09406894]
[1617250597738,7.7932,1925.1,1924.8,0.09406894]
[1617250597939,0.14,1925.3,1924.9,0.41]
[1617250598140,0.14,1925.3,1924.9,0.69]
[1617250598739,7.61813,1925.4,1924.9,0.69]
[1617250600230,7.61813,1925.4,1924.9,0.28]
[1617250601435,10.52989,1925.5,1925.0,0.39]
[1617250601638,0.14,1925.5,1925.0,0.39]
[1617250601833,4.29,1925.5,1925.0,0.677]
[1617250603238,12.08159,1925.5,1925.0,0.677]
[1617250603436,12.08159,1925.5,1925.0,0.287]
[1617250604038,12.08159,1925.5,1925.0,0.677]
[1617250605237,7.79159,1925.5,1925.0,0.677]
[1617250606041,7.79159,1925.5,1925.0,0.287]
[1617250606840,7.79159,1925.5,1925.0,0.697]
[1617250607438,7.79159,1925.5,1925.0,3.14527228]
[1617250607838,7.79159,1925.5,1925.2,0.4]
[1617250608041,12.0,1925.6,1925.2,3.14927228]
[1617250608239,12.0,1925.6,1925.2,12.63697228]
[1617250608438,12.0,1925.6,1925.3,2.84827228]
[1617250609039,12.0,1925.6,1925.3,2.44827228]
[1617250609841,12.0,1925.6,1925.2,0.301]
[1617250611262,19.79086,1925.6,1925.2,0.301]
[1617250612662,19.79086,1925.6,1925.3,2.44827228]
[1617250612886,19.79086,1925.6,1925.2,0.701]
[1617250616315,12.0,1925.6,1925.3,2.44827228]
[1617250616517,12.0,1925.6,1925.5,0.4]
[1617250616915,12.0,1925.6,1925.1,2.44827228]
[1617250617115,12.0,1925.6,1925.5,0.39]
[1617250617323,12.0,1925.6,1925.5,14.53724]
[1617250618138,12.0,1925.6,1925.5,6.7485]
[1617250618340,12.0,1925.6,1925.5,9.19677228]
[1617250621961,12.0,1925.6,1925.5,6.7485]
[1617250622965,12.0,1925.6,1925.5,6.3585]
[1617250623165,12.0,1925.6,1925.0,10.38673]
[1617250623388,12.0,1925.6,1925.0,14.63873]
[1617250623588,12.0,1925.6,1925.0,0.712]
[1617250623790,11.0,1925.6,1925.1,2.44827228]
[1617250623990,11.0,1925.6,1925.0,0.712]
[1617250624191,11.0,1925.6,1925.0,3.1580365]
[1617250624390,22.85607798,1925.6,1925.0,3.1580365]
[1617250625391,22.85607798,1925.6,1925.4,0.39]
[1617250625593,15.06518798,1925.6,1925.5,0.4]
[1617250626016,15.06518798,1925.6,1925.3,0.28]
[1617250626218,15.06518798,1925.6,1925.4,0.39]
[1617250626417,15.06518798,1925.6,1925.3,0.28]
[1617250628838,14.90618798,1925.6,1925.3,0.28]
[1617250629240,22.69716798,1925.6,1925.3,0.28]
[1617250629840,21.69716798,1925.6,1925.3,0.28]
[1617250630839,21.64716798,1925.6,1925.3,0.28]
[1617250632874,21.27716798,1925.6,1925.3,0.28]
[1617250633077,21.27716798,1925.6,1925.2,0.28]
[1617250634088,13.48618798,1925.6,1925.2,0.28]
[1617250634891,13.01618798,1925.6,1925.2,0.66]
[1617250635290,13.01618798,1925.6,1925.2,8.45103]
[1617250635890,12.01618798,1925.6,1925.3,0.41]
[1617250636089,12.01618798,1925.6,1925.3,0.69]
[1617250637117,12.01618798,1925.6,1925.1,10.78779]
[1617250637518,12.01618798,1925.6,1925.1,10.38779]
[1617250637719,12.01618798,1925.6,1925.0,0.28]
[1617250638521,7.951,1925.6,1925.0,0.28]
[1617250638921,6.951,1925.6,1925.0,0.68]
[1617250639139,14.74261,1925.6,1925.0,8.47187]
[1617250640339,14.74261,1925.6,1925.2,0.38]
[1617250640740,6.951,1925.6,1925.2,0.681]
[1617250640944,6.811,1925.6,1925.2,0.681]
[1617250642172,6.811,1925.6,1925.2,8.472]
[1617250642973,6.811,1925.6,1925.4,0.4]
[1617250643774,6.811,1925.6,1925.5,7.7897]
[1617250643973,5.811,1925.6,1925.5,7.7897]
[1617250644590,5.811,1925.6,1925.5,8.1797]
[1617250644990,5.811,1925.6,1925.5,10.60118624]
[1617250646791,5.811,1925.6,1925.5,13.96118624]
[1617250648823,5.124,1925.6,1925.5,13.96118624]
[1617250653064,5.124,1925.6,1925.5,13.57118624]
[1617250653866,5.023,1925.6,1925.5,13.57118624]
[1617250654069,5.023,1925.6,1925.5,13.98118624]
[1617250657093,5.023,1925.6,1925.5,13.57118624]
[1617250660335,5.023,1925.6,1925.5,11.1497]
[1617250660536,5.023,1925.6,1925.4,5.4]
[1617250660736,5.023,1925.6,1925.4,5.01]
[1617250661137,5.023,1925.6,1925.3,10.38658]
[1617250661339,5.023,1925.6,1925.3,10.76658]
[1617250661739,5.023,1925.6,1925.3,0.38]
[1617250662537,5.023,1925.6,1925.3,5.39]
[1617250662984,4.573,1925.6,1925.3,5.39]
[1617250664183,4.573,1925.6,1925.4,5.01]
[1617250664985,4.573,1925.6,1925.3,0.38]
[1617250665187,4.573,1925.6,1925.4,5.01]
[1617250665591,4.573,1925.6,1925.2,8.07111]
[1617250666191,4.573,1925.6,1925.2,0.28]
[1617250666791,4.573,1925.6,1925.1,0.82612203]
[1617250667592,4.573,1925.6,1925.1,5.69]
[1617250667792,4.573,1925.6,1925.1,0.68]
[1617250668016,0.021,1925.5,1924.9,0.09406894]
[1617250668216,0.021,1925.5,1925.0,8.18217]
[1617250668616,0.021,1925.5,1925.1,0.413]
[1617250669215,0.021,1925.5,1925.1,0.28]
[1617250669819,7.81359,1925.5,1925.1,0.28]
[1617250670017,7.81359,1925.5,1925.0,5.687]
[1617250670216,7.81359,1925.5,1925.0,0.677]
[1617250670841,0.021,1925.5,1925.2,0.364]
[1617250671843,7.81358,1925.5,1925.2,0.364]
[1617250672242,7.81358,1925.5,1925.0,0.39]
[1617250672449,7.81358,1925.5,1924.9,0.765]
[1617250673044,7.81358,1925.5,1924.9,0.85906894]
[1617250673266,7.81358,1925.5,1924.9,0.765]
[1617250673865,7.81358,1925.5,1925.0,0.315]
[1617250674866,4.573,1925.6,1925.1,0.4]
[1617250675266,4.59120773,1925.6,1925.3,0.38]
[1617250675466,4.573,1925.6,1925.2,0.378]
[1617250676291,4.573,1925.6,1925.2,5.388]
[1617250676491,4.573,1925.6,1925.2,0.378]
[1617250676690,4.573,1925.6,1925.2,5.388]
[1617250676892,4.573,1925.6,1925.3,0.39]
[1617250677092,4.573,1925.6,1925.4,7.79081]
[1617250677291,4.573,1925.6,1925.4,10.57081]
[1617250677492,4.573,1925.6,1925.4,10.85081]
[1617250677698,4.573,1925.6,1925.5,32.91869948]
[1617250677893,4.573,1925.6,1925.5,33.24069948]
[1617250678094,4.573,1925.6,1925.5,61.53469918]
[1617250678520,4.573,1925.6,1925.5,24.90943948]
[1617250678921,4.573,1925.6,1925.5,24.50943948]
[1617250679119,4.573,1925.6,1925.5,24.18743948]
[1617250679320,4.573,1925.6,1925.5,24.56743948]
[1617250680119,4.573,1925.6,1925.5,32.56743948]
[1617250680919,3.573,1925.6,1925.5,32.56743948]
[1617250681549,3.573,1925.6,1925.5,24.56743948]
[1617250681748,3.573,1925.6,1925.5,19.55743948]
[1617250683149,3.573,1925.6,1925.5,19.17743948]
[1617250683348,3.573,1925.6,1925.5,7.78874]
[1617250685573,3.573,1925.6,1925.5,12.79874]
[1617250685971,2.573,1925.6,1925.5,12.79874]
[1617250686394,2.573,1925.6,1925.5,13.18874]
[1617250686994,2.573,1925.6,1925.5,12.79874]
[1617250687195,2.573,1925.6,1925.5,15.51874]
[1617250691025,1.573,1925.6,1925.5,15.91874]
[1617250692088,1.573,1925.6,1925.5,18.91874]
[1617250692485,1.573,1925.6,1925.5,15.91874]
[1617250692883,1.573,1925.6,1925.5,15.51874]
[1617250694684,1.573,1925.6,1925.5,15.92874]
[1617250694884,1.573,1925.6,1925.5,18.85783809]
[1617250695087,1.573,1925.6,1925.5,26.85783809]
[1617250695286,1.0,1926.4,1925.5,34.24054]
[1617250695486,1.0,1926.4,1926.2,0.38]
[1617250695686,1.0,1926.4,1926.2,5.29]
[1617250695884,0.00605604,1926.6,1926.4,7.78682]
[1617250696088,0.00605604,1926.6,1926.4,8.06682]
[1617250696486,0.00605604,1926.6,1926.4,7.78682]
[1617250697307,0.0060559,1926.5,1926.4,7.78682]
[1617250697508,0.0060559,1926.6,1926.4,7.78682]
[1617250697709,39.59798191,1926.7,1926.4,7.78682]
[1617250697908,39.59798191,1926.7,1926.4,8.06682]
[1617250698107,39.59193325,1926.7,1926.4,7.78682]
[1617250698509,39.59798184,1926.7,1926.4,7.78682]
[1617250698910,39.59193325,1926.7,1926.5,2.40429586]
[1617250699112,39.59193325,1926.7,1926.4,7.78682]
[1617250699734,39.59798146,1926.7,1926.4,7.78682]
[1617250700935,38.59798146,1926.7,1926.4,7.78682]
[1617250701535,0.00605021,1926.6,1926.4,7.78682]
[1617250701737,38.54798346,1926.7,1926.4,7.78682]
[1617250701938,38.54798346,1926.7,1926.4,10.58909942]
[1617250702156,38.54798346,1926.7,1926.5,0.39]
[1617250702355,38.54798346,1926.7,1926.6,7.78592]
[1617250704158,38.54798346,1926.7,1926.4,7.78682]
[1617250704986,38.54798346,1926.7,1926.4,8.06682]
[1617250705387,38.54798346,1926.7,1926.4,7.78682]
[1617250705789,38.54798346,1926.7,1926.2,15.39197]
[1617250705992,37.54798346,1926.7,1926.2,8.38197]
[1617250706992,37.54798346,1926.7,1926.2,8.66197]
[1617250708427,37.54798346,1926.7,1926.2,8.38197]
[1617250708627,37.54798346,1926.7,1926.2,12.00197]
[1617250709026,37.54798346,1926.7,1926.2,12.39197]
[1617250709230,37.54798346,1926.7,1926.3,2.79825172]
[1617250709426,37.54798346,1926.7,1926.5,7.78609]
[1617250709626,37.54798346,1926.7,1926.5,10.78609]
[1617250709827,37.54798346,1926.7,1926.5,10.50609]
[1617250710431,37.54798346,1926.7,1926.5,7.78609]
[1617250711030,36.54798346,1926.7,1926.5,7.78609]
[1617250712659,36.54798346,1926.7,1926.5,7.73609]
[1617250714662,36.54798346,1926.7,1926.5,10.43609]
[1617250715063,36.49798346,1926.7,1926.5,10.43609]
[1617250715881,36.49798346,1926.7,1926.5,7.73609]
[1617250716081,35.49798346,1926.7,1926.4,10.38145]
[1617250716282,35.49798346,1926.7,1926.2,0.69]
[1617250716481,35.49798346,1926.7,1926.2,0.41]
[1617250716881,35.49798346,1926.7,1926.1,10.57988784]
[1617250717281,35.49798346,1926.7,1926.2,0.413]
[1617250717961,35.49798346,1926.7,1926.1,10.95988784]
[1617250718161,35.49798346,1926.7,1926.2,7.78756]
[1617250719561,35.49798346,1926.7,1926.2,10.62756]
[1617250719981,2.75,1926.6,1926.2,10.62756]
[1617250720980,1.75,1926.6,1926.2,10.62756]
[1617250721985,1.75,1926.6,1926.2,16.179]
[1617250722388,1.75,1926.6,1926.3,2.0765886]
[1617250722590,1.75,1926.6,1926.4,7.78679]
[1617250722786,1.75,1926.6,1926.5,5.01]
[1617250722986,2.75,1926.6,1926.5,5.01]
[1617250723186,2.75,1926.6,1926.4,3.8]
[1617250723785,2.75,1926.6,1926.5,7.40026508]
[1617250723987,38.24798346,1926.7,1926.5,7.78619]
[1617250725590,38.18798346,1926.7,1926.5,7.78619]
[1617250725991,37.73898346,1926.7,1926.5,7.78619]
[1617250726795,34.98898346,1926.7,1926.5,7.78619]
[1617250727794,34.44705021,1926.7,1926.5,7.78619]
[1617250728194,34.44705021,1926.7,1926.5,10.86619]
[1617250729206,34.44705021,1926.7,1926.5,7.78619]
[1617250729407,34.44705021,1926.7,1926.5,11.67937]
[1617250729609,34.44705021,1926.7,1926.6,5.01]
[1617250730807,34.44705021,1926.7,1926.6,12.79695]
[1617250731232,34.44705021,1926.7,1926.6,7.78695]
[1617250732630,34.44705021,1926.7,1926.6,6.78695]
[1617250733231,37.19705021,1926.7,1926.6,6.78695]
[1617250733658,37.19705021,1926.7,1926.4,21.3617467]
[1617250733858,37.19705021,1926.7,1926.4,21.6417467]
[1617250734258,34.44705021,1926.7,1926.4,21.3617467]
[1617250734658,34.44705021,1926.7,1926.6,5.01]
[1617250734895,34.44705021,1926.7,1926.5,7.78711]
[1617250735290,34.44705021,1926.7,1926.6,5.01]
[1617250735691,34.44705021,1926.7,1926.6,12.79688]
[1617250736494,34.44705021,1926.7,1926.6,13.18688]
[1617250736694,34.44705021,1926.7,1926.6,12.79688]
[1617250737693,34.44705021,1926.7,1926.6,7.78688]
[1617250737895,34.44705021,1926.7,1926.6,11.54688]
[1617250739509,34.39705021,1926.7,1926.6,11.54688]
[1617250739909,34.39705021,1926.7,1926.6,3.76]
[1617250740108,34.39705021,1926.7,1926.5,10.38073]
[1617250741112,34.39705021,1926.7,1926.6,0.39]
[1617250741312,34.39705021,1926.7,1926.6,13.18626]
[1617250741738,34.39705021,1926.7,1926.6,13.39377995]
[1617250741937,34.39705021,1926.7,1926.6,16.95377995]
[1617250742338,34.39705021,1926.7,1926.6,16.56377995]
[1617250742738,34.39705021,1926.7,1926.6,16.97377995]
[1617250743539,34.39705021,1926.7,1926.6,16.56377995]
[1617250745568,34.39705021,1926.7,1926.6,16.97777995]
[1617250745769,34.39705021,1926.7,1926.6,11.96777995]
[1617250746569,34.39705021,1926.7,1926.6,12.24777995]
[1617250746785,34.39705021,1926.7,1926.6,20.69777995]
[1617250748386,34.39705021,1926.7,1926.6,20.41777995]
[1617250750011,34.39705021,1926.7,1926.6,15.40777995]
[1617250753234,34.39705021,1926.7,1926.6,20.41777995]
[1617250753434,34.39705021,1926.7,1926.6,20.80777995]
[1617250753838,34.39705021,1926.7,1926.6,15.40777995]
[1617250757501,34.40919122,1926.7,1926.6,15.40777995]
[1617250758301,34.40919122,1926.7,1926.6,11.96777995]
[1617250759301,34.40919122,1926.7,1926.6,4.18151995]
[1617250760508,34.40919122,1926.7,1926.6,11.96772995]
[1617250761308,34.40919122,1926.7,1926.6,4.18151995]
[1617250761708,34.40919122,1926.7,1926.6,4.46151995]
[1617250761908,34.40919122,1926.7,1926.6,12.24776995]
[1617250762109,34.40919122,1926.7,1926.6,15.62776995]
[1617250765058,34.36619122,1926.7,1926.6,15.62776995]
[1617250765259,34.36619122,1926.7,1926.6,16.00776995]
[1617250765459,34.36619122,1926.7,1926.6,24.00776995]
[1617250766464,34.36619122,1926.7,1926.6,16.00776995]
[1617250767463,34.26619122,1926.7,1926.6,16.00776995]
[1617250768105,33.26619122,1926.7,1926.6,16.00776995]
[1617250770309,33.26619122,1926.7,1926.6,15.34776995]
[1617250771914,34.27227096,1926.7,1926.6,15.34776995]
[1617250772939,34.26619735,1926.7,1926.6,15.34776995]
[1617250773142,33.26619735,1926.7,1926.6,15.34776995]
[1617250773738,33.26619735,1926.7,1926.6,15.73776995]
[1617250774543,33.26619735,1926.7,1926.6,15.34776995]
[1617250776765,33.26619735,1926.7,1926.6,15.54393866]
[1617250776966,33.26619735,1926.7,1926.6,15.33641871]
[1617250778185,32.26619735,1926.7,1926.6,15.33641871]
[1617250778789,32.26619735,1926.7,1926.6,16.00641871]
[1617250778988,32.26619735,1926.7,1926.6,29.01641871]
[1617250783013,31.26619735,1926.7,1926.6,28.62641871]
[1617250783214,31.26619735,1926.7,1926.6,15.33641871]
[1617250785461,31.26619735,1926.7,1926.6,11.95641871]
[1617250786166,31.27227312,1926.7,1926.6,11.95641871]
[1617250786563,31.26619881,1926.7,1926.6,11.95641871]
[1617250786764,31.26619881,1926.7,1926.6,15.33641871]
[1617250786966,31.2844217,1926.7,1926.6,15.33641871]
[1617250787364,31.26619881,1926.7,1926.6,23.33641871]
[1617250787568,31.27229001,1926.7,1926.6,28.34641871]
[1617250787764,31.77229001,1926.7,1926.6,28.75641871]
[1617250787965,31.77229001,1926.7,1926.6,28.34641871]
[1617250788165,31.77229001,1926.7,1926.6,20.34641871]
[1617250788166,30.75405021,1926.7,1926.6,20.34641871]
[1617250788366,30.75405021,1926.7,1926.6,15.33641871]
[1617250791914,30.75405021,1926.7,1926.6,15.28651871]
[1617250793118,29.75405021,1926.7,1926.6,15.28651871]
[1617250798166,28.75405021,1926.7,1926.6,15.56651871]
[1617250798365,28.77229223,1926.7,1926.6,15.95651871]
[1617250798966,28.77229223,1926.7,1926.6,23.95651871]
[1617250799391,28.77229223,1926.7,1926.6,25.45651871]
[1617250799992,28.77229223,1926.7,1926.6,26.65651871]
[1617250800192,28.77229223,1926.7,1926.6,25.45651871]
[1617250801594,28.77229223,1926.7,1926.6,26.98287256]
[1617250802024,28.77229223,1926.7,1926.6,25.45651871]
[1617250803026,27.77229223,1926.7,1926.6,25.45651871]
[1617250803229,27.77229223,1926.7,1926.6,17.45651871]
[1617250803426,37.77229223,1926.7,1926.6,17.45651871]
[1617250803626,37.77229223,1926.7,1926.6,16.78651871]
[1617250803826,37.77229223,1926.7,1926.6,17.45651871]
[1617250804229,37.77229223,1926.7,1926.6,25.45651871]
[1617250804640,37.77229223,1926.7,1926.6,17.45651871]
[1617250804840,37.77229223,1926.7,1926.6,25.45651871]
[1617250805041,37.77229223,1926.7,1926.6,25.17651871]
[1617250805241,37.77229223,1926.7,1926.6,24.78651871]
[1617250805442,37.77229223,1926.7,1926.6,25.47651871]
[1617250807067,37.77229223,1926.7,1926.6,17.47651871]
[1617250807870,37.76621216,1926.7,1926.6,17.19651871]
[1617250808071,36.76621216,1926.7,1926.6,13.37891871]
[1617250808270,36.76621216,1926.7,1926.6,14.05891871]
[1617250808474,36.76621216,1926.7,1926.6,17.71891871]
[1617250809274,36.76621216,1926.7,1926.6,25.71891871]
[1617250809701,36.77231165,1926.7,1926.6,25.71891871]
[1617250813116,35.81531165,1926.7,1926.6,25.71891871]
[1617250814716,35.81531165,1926.7,1926.6,26.91891871]
[1617250815144,35.82748582,1926.7,1926.6,26.91891871]
[1617250815541,35.82748582,1926.7,1926.6,25.71891871]
[1617250815743,35.81531165,1926.7,1926.6,25.71891871]
[1617250817344,35.81531165,1926.7,1926.6,25.43891871]
[1617250817578,42.28651165,1926.7,1926.6,17.03891871]
[1617250817778,42.28651165,1926.7,1926.6,7.5841]
[1617250817977,42.26825021,1926.7,1926.6,3.9241]
[1617250818377,42.35957077,1926.7,1926.6,3.9241]
[1617250818579,42.26825021,1926.7,1926.6,3.9241]
[1617250818778,42.26825021,1926.7,1926.4,3.9241]
[1617250818779,42.97143191,1926.7,1926.4,3.9241]
[1617250818981,42.97143191,1926.7,1926.6,0.39]
[1617250819179,42.97143191,1926.7,1926.6,0.67]
[1617250819379,42.88010961,1926.7,1926.6,0.28]
[1617250819579,42.26825021,1926.7,1926.6,8.06496]
[1617250819778,42.26825021,1926.7,1926.6,11.98906]
[1617250819979,42.26825021,1926.7,1926.6,16.59906]
[1617250819980,35.79705021,1926.7,1926.6,16.59906]
[1617250820202,35.79705021,1926.7,1926.6,33.20586]
[1617250820401,29.12699331,1926.7,1926.6,60.03386]
[1617250820703,29.12699331,1926.7,1926.6,39.80820446]
[1617250820704,22.09888731,1926.7,1926.6,39.80820446]
[1617250820902,15.41104731,1926.7,1926.6,48.70820446]
[1617250821102,10.22320441,1926.7,1926.6,39.80820446]
[1617250821302,1.0,1926.9,1926.7,20.8]
[1617250821505,1.0,1926.9,1926.8,23.11]
[1617250821703,1.0,1926.9,1926.8,60.34567]
[1617250821902,1.0,1926.9,1926.8,38.84567]
[1617250822103,0.01217345,1927.0,1926.8,42.3132597]
[1617250822303,0.01217345,1927.0,1926.9,10.91]
[1617250822502,0.01217345,1927.0,1926.9,17.99]
[1617250822936,0.01217345,1927.0,1926.9,26.23914618]
[1617250823137,0.01217348,1927.1,1926.9,44.68850588]
[1617250823337,0.01217348,1927.1,1927.0,42.29379758]
[1617250823537,0.01217348,1927.1,1927.0,42.04379758]
[1617250823937,0.01217348,1927.1,1927.0,38.30008788]
[1617250824141,0.01217348,1927.1,1927.0,42.22418788]
[1617250824538,0.01217348,1927.1,1927.0,53.74944758]
[1617250825376,0.01217348,1927.1,1927.0,54.94259548]
[1617250827177,0.03043369,1927.4,1927.2,1.29406894]
[1617250827377,0.03043369,1927.4,1927.3,33.07746]
[1617250827578,0.70301825,1927.5,1927.4,24.95]
[1617250827579,5.194e-05,1927.5,1927.4,24.95]
[1617250827780,0.15215135,1927.8,1927.5,0.09406894]
[1617250827979,0.15215135,1927.8,1927.7,8.4507]
[1617250828179,0.15215135,1927.8,1927.7,12.3748]
[1617250828378,0.15215135,1927.8,1927.7,20.3748]
[1617250828579,0.15215135,1927.8,1927.7,24.6107]
[1617250829880,1.0,1927.9,1927.7,24.6107]
[1617250830084,1.0,1927.9,1927.8,5.01]
[1617250830281,1.0,1927.9,1927.8,9.49]
[1617250831098,1.0,1927.9,1927.8,9.89]